bitfinex-derivatives/quotes_SOLF0:USTF0_20241029
["timestamp","ask_amount","ask_price","bid_price","bid_amount"]
[1730218857303,5.22,181.49,181.44,9.26520615]
[1730218857502,5.22,181.49,181.46,2.7557]
[1730218858110,5.22,181.49,181.39,10.02810615]
[1730218858306,7.9753,181.49,181.45,2.7558]
[1730218859202,7.9753,181.49,181.45,2.7559]
[1730218859203,5.22,181.49,181.45,2.7559]
[1730218859409,9.26520615,181.5,181.39,10.02810615]
[1730218859606,5.22,181.48,181.39,9.26520615]
[1730218860707,7.9756,181.48,181.44,2.756]
[1730218861104,5.22,181.48,181.43,2.7562]
[1730218861408,5.22,181.48,181.41,9.26520615]
[1730218861797,5.22,181.48,181.38,1.2586]
[1730218861798,1.2564,181.56,181.44,9.26520615]
[1730218862003,5.22,181.55,181.46,9.26520615]
[1730218862415,5.22,181.55,181.49,9.26520615]
[1730218862705,1.2935,181.59,181.51,9.26520615]
[1730218862911,59.52,181.61,181.51,9.26520615]
[1730218862912,5.22,181.58,181.51,9.26520615]
[1730218863308,5.22,181.58,181.57,2.7541]
[1730218864009,59.52,181.61,181.59,2.7537]
[1730218864311,5.22,181.6,181.59,2.7537]
[1730218864712,5.22,181.6,181.53,9.26520615]
[1730218866206,5.22,181.6,181.57,2.754]
[1730218867012,5.22,181.6,181.53,9.26520615]
[1730218867201,2.753,181.65,181.55,9.26520615]
[1730218867408,5.22,181.62,181.55,9.26520615]
[1730218867815,5.22,181.62,181.57,2.7541]
[1730218868013,5.22,181.62,181.55,9.26520615]
[1730218868211,2.69264053,181.66,181.55,9.26520615]
[1730218868513,1.2957,181.69,181.6,9.26520615]
[1730218868514,5.22,181.65,181.6,9.26520615]
[1730218869016,5.22,181.65,181.64,2.753]
[1730218869616,5.22,181.69,181.67,2.7525]
[1730218870208,14.48520615,181.69,181.58,9.26520615]
[1730218870620,2.7525,181.68,181.61,9.26520615]
[1730218870815,2.7525,181.68,181.64,2.7529]
[1730218871417,7.9724,181.69,181.64,2.753]
[1730218871619,7.9724,181.69,181.61,9.26520615]
[1730218871806,5.22,181.69,181.64,9.26520615]
[1730218872010,5.22,181.69,181.66,2.7526]
[1730218872720,5.22,181.69,181.64,9.26520615]
[1730218873013,5.22,181.69,181.67,2.7526]
[1730218873220,5.22,181.69,181.64,9.26520615]
[1730218873521,59.52,181.71,181.64,9.26520615]
[1730218873715,5.22,181.7,181.64,9.26520615]
[1730218874417,5.22,181.7,181.61,9.26520615]
[1730218874719,5.22,181.7,181.64,2.7529]
[1730218874720,2.7526,181.67,181.64,2.7529]
[1730218874920,5.22,181.7,181.64,2.7529]
[1730218875223,2.753,181.65,181.61,2.7534]
[1730218875518,7.973,181.65,181.61,2.7534]
[1730218875722,5.22,181.65,181.59,9.26520615]
[1730218875914,2.7532,181.64,181.6,2.7536]
[1730218876818,2.7532,181.64,181.61,2.7535]
[1730218877217,5.22,181.65,181.59,9.26520615]
[1730218877525,5.22,181.65,181.63,2.7532]
[1730218877823,5.22,181.65,181.55,5.22]
[1730218877824,5.22,181.65,181.64,2.7531]
[1730218878122,5.22,181.65,181.55,5.22]
[1730218878330,5.22,181.65,181.59,9.26520615]
[1730218878525,5.22,181.65,181.57,9.26520615]
[1730218879118,2.7535,181.62,181.57,9.26520615]
[1730218879321,2.7535,181.62,181.55,9.26520615]
[1730218879518,15.68740615,181.65,181.55,9.26520615]
[1730218879728,9.26520615,181.63,181.52,9.26520615]
[1730218880819,2.7537,181.6,181.56,2.7541]
[1730218881020,5.22,181.59,181.56,2.7541]
[1730218881515,5.22,181.59,181.5,9.26520615]
[1730218881922,2.7544,181.56,181.52,2.7548]
[1730218882129,12.05416707,181.56,181.43,0.7618]
[1730218882325,9.26520615,181.56,181.45,9.26520615]
[1730218882627,9.26520615,181.54,181.43,9.26520615]
[1730218882933,5.22,181.53,181.43,9.26520615]
[1730218883123,9.26520615,181.52,181.38,0.7618]
[1730218883428,9.26520615,181.52,181.4,9.26520615]
[1730218883824,9.26520615,181.5,181.4,9.26520615]
[1730218884025,9.26520615,181.52,181.4,9.26520615]
[1730218884527,2.7554,181.49,181.4,14.82220801]
[1730218884719,5.22,181.48,181.4,14.82220801]
[1730218885321,5.22,181.48,181.47,2.7556]
[1730218888032,5.22,181.48,181.46,2.7558]
[1730218888327,5.22,181.48,181.43,14.82220801]
[1730218889422,5.22,181.48,181.47,2.7556]
[1730218889621,2.7558,181.47,181.37,14.82220801]
[1730218889924,2.7558,181.47,181.43,2.7561]
[1730218890127,5.22,181.48,181.43,2.7561]
[1730218890315,2.7559,181.46,181.37,14.82220801]
[1730218890518,5.22,181.48,181.37,14.82220801]
[1730218891223,2.7557,181.47,181.44,2.7561]
[1730218891426,5.22,181.48,181.37,14.82220801]
[1730218891729,5.22,181.48,181.4,14.82220801]
[1730218891915,5.22,181.48,181.42,2.7563]
[1730218892121,5.22,181.48,181.4,14.82220801]
[1730218893132,5.22,181.48,181.44,2.7559]
[1730218893328,5.22,181.48,181.37,14.82220801]
[1730218893723,2.7558,181.46,181.4,2.7567]
[1730218893922,2.7558,181.46,181.37,14.82220801]
[1730218894126,5.22,181.48,181.4,14.82220801]
[1730218894327,4.0411728,181.55,181.43,14.82220801]
[1730218894530,5.22,181.54,181.43,14.82220801]
[1730218895234,2.7549,181.52,181.43,14.82220801]
[1730218895627,2.7549,181.52,181.48,2.7554]
[1730218896025,2.7549,181.52,181.43,14.82220801]
[1730218896331,5.22,181.54,181.43,14.82220801]
[1730218896738,14.82220801,181.53,181.39,5.22]
[1730218897035,14.82220801,181.53,181.39,14.82220801]
[1730218897437,8.03759688,181.54,181.42,14.82220801]
[1730218897734,5.22,181.54,181.42,14.82220801]
[1730218898333,2.7549,181.52,181.48,2.7554]
[1730218898731,5.22,181.54,181.48,2.7554]
[1730218898933,2.7551,181.51,181.48,2.7554]
[1730218899738,2.7549,181.52,181.48,2.7554]
[1730218900040,3.96213885,181.55,181.48,2.7554]
[1730218900234,5.22,181.54,181.48,2.7554]
[1730218900439,2.755,181.52,181.48,2.7554]
[1730218900636,5.22,181.54,181.48,2.7554]
[1730218901438,2.755,181.52,181.48,2.7554]
[1730218902842,1.2196,181.55,181.47,14.82220801]
[1730218903047,14.82220801,181.62,181.47,14.82220801]
[1730218903343,5.22,181.55,181.47,14.82220801]
[1730218904048,2.7546,181.54,181.5,2.7551]
[1730218904238,2.7546,181.54,181.47,14.82220801]
[1730218904447,5.22,181.55,181.45,9.26995315]
[1730218904648,2.7547,181.54,181.5,2.7551]
[1730218904842,5.22,181.55,181.5,2.7551]
[1730218905146,5.22,181.55,181.45,9.26995315]
[1730218905651,2.7549,181.52,181.49,2.7552]
[1730218906352,6.5427,181.55,181.45,9.26995315]
[1730218906544,6.5427,181.55,181.43,9.26995315]
[1730218906545,2.7554,181.49,181.43,9.26995315]
[1730218906844,7.9754,181.49,181.43,9.26995315]
[1730218907043,5.22,181.49,181.47,2.7556]
[1730218908135,5.22,181.49,181.43,9.26995315]
[1730218908842,5.22,181.49,181.48,2.7555]
[1730218909447,5.22,181.49,181.43,9.26995315]
[1730218909642,5.22,181.49,181.48,2.7555]
[1730218911047,7.9754,181.49,181.46,2.7557]
[1730218911252,5.22,181.49,181.43,9.26995315]
[1730218911556,5.22,181.49,181.47,2.7556]
[1730218911853,5.22,181.49,181.43,9.26995315]
[1730218912351,5.22,181.49,181.47,2.7556]
[1730218912849,5.22,181.49,181.41,9.26995315]
[1730218913056,6.532,181.49,181.41,9.26995315]
[1730218913461,9.2874,181.49,181.46,2.7558]
[1730218914470,6.532,181.49,181.47,2.7555]
[1730218920861,6.532,181.49,181.41,9.26995315]
[1730218921975,6.532,181.49,181.38,2.5142]
[1730218921976,5.22,181.49,181.48,2.7555]
[1730218922162,10.54335315,181.54,181.43,9.26995315]
[1730218922364,5.22,181.53,181.43,9.26995315]
[1730218922669,2.7551,181.51,181.48,2.7554]
[1730218922856,10.54335315,181.54,181.43,9.26995315]
[1730218923060,5.22,181.53,181.46,9.26995315]
[1730218923360,5.22,181.53,181.43,9.26995315]
[1730218923759,2.7552,181.5,181.46,2.7557]
[1730218923967,2.7552,181.5,181.41,9.26995315]
[1730218924167,2.7555,181.49,181.46,2.7558]
[1730218924366,5.22,181.48,181.41,9.26995315]
[1730218925973,7.9755,181.48,181.45,2.7559]
[1730218927265,5.22,181.48,181.41,9.26995315]
[1730218927875,7.9756,181.48,181.45,2.7559]
[1730218929483,7.9756,181.48,181.32,5.5156]
[1730218929484,9.26995315,181.47,181.32,5.5156]
[1730218929663,9.26995315,181.44,181.34,9.26995315]
[1730218929864,5.22,181.43,181.36,9.26995315]
[1730218930080,5.22,181.43,181.34,9.26995315]
[1730218930667,2.4392,181.47,181.36,9.26995315]
[1730218930871,5.22,181.43,181.36,9.26995315]
[1730218931072,5.22,181.43,181.42,2.7564]
[1730218931275,5.22,181.51,181.42,9.26995315]
[1730218931571,5.22,181.5,181.44,9.26995315]
[1730218931772,11.70915315,181.55,181.44,9.26995315]
[1730218931976,5.22,181.54,181.44,9.26995315]
[1730218932176,2.7549,181.52,181.44,9.26995315]
[1730218933063,5.22,181.54,181.44,9.26995315]
[1730218933269,9.26995315,181.53,181.44,2.756]
[1730218933672,2.7556,181.48,181.44,2.756]
[1730218933978,5.22,181.47,181.43,2.7561]
[1730218934679,5.22,181.47,181.35,9.26995315]
[1730218934680,9.26995315,181.46,181.35,9.26995315]
[1730218934863,13.08365315,181.46,181.35,9.26995315]
[1730218935068,2.7563,181.43,181.38,2.7569]
[1730218935268,5.22,181.42,181.35,9.26995315]
[1730218935675,5.22,181.42,181.33,1.3042]
[1730218935879,9.26995315,181.41,181.32,9.26995315]
[1730218936269,9.26995315,181.41,181.35,2.7574]
[1730218936465,2.7569,181.39,181.35,2.7574]
[1730218936673,9.26995315,181.41,181.35,2.7574]
[1730218937081,2.7569,181.39,181.35,2.7574]
[1730218937270,9.26995315,181.41,181.32,9.26995315]
[1730218937469,5.22,181.42,181.34,9.26995315]
[1730218938280,2.7566,181.41,181.37,2.757]
[1730218938473,5.22,181.42,181.34,9.26995315]
[1730218938676,59.56,181.45,181.38,9.26995315]
[1730218938983,5.22,181.44,181.43,2.7562]
[1730218941571,1.2065,181.52,181.45,2.7558]
[1730218941769,5.22,181.51,181.45,2.7558]
[1730218941979,2.7554,181.49,181.45,2.7558]
[1730218942182,5.22,181.51,181.44,2.756]
[1730218942377,5.22,181.51,181.41,9.26995315]
[1730218942378,14.48995315,181.51,181.41,9.26995315]
[1730218942576,2.7557,181.47,181.41,9.26995315]
[1730218942770,5.22,181.46,181.43,2.7562]
[1730218942970,5.22,181.46,181.39,9.26995315]
[1730218943376,5.22,181.46,181.36,2.4463]
[1730218943377,14.48995315,181.46,181.38,2.757]
[1730218943578,2.7563,181.43,181.36,9.26995315]
[1730218943873,3.98808423,181.45,181.39,2.7567]
[1730218944068,3.98808423,181.45,181.36,9.26995315]
[1730218944478,3.98808423,181.45,181.33,0.767]
[1730218944479,3.98808423,181.45,181.42,2.7563]
[1730218944680,5.22,181.46,181.41,9.26995315]
[1730218945082,5.22,181.46,181.33,0.767]
[1730218945083,1.2883,181.51,181.5,2.7552]
[1730218945386,5.22,181.5,181.45,9.26995315]
[1730218945975,5.22,181.5,181.47,2.7555]
[1730218946283,5.22,181.5,181.43,9.26995315]
[1730218946684,5.22,181.5,181.41,9.26995315]
[1730218947187,5.22,181.5,181.43,2.7562]
[1730218947775,2.7558,181.47,181.43,2.7562]
[1730218947971,5.22,181.5,181.43,2.7562]
[1730218948190,2.7558,181.47,181.43,2.7562]
[1730218948687,5.22,181.5,181.45,2.7559]
[1730218948885,2.7555,181.48,181.45,2.7559]
[1730218951691,4.0434,181.51,181.47,2.7555]
[1730218951890,5.2,181.5,181.43,9.26995315]
[1730218952379,5.2,181.5,181.48,2.7554]
[1730218953378,16.51,181.62,181.43,9.26995315]
[1730218953379,5.2,181.57,181.53,2.7546]
[1730218953582,5.2,181.56,181.53,2.7546]
[1730218953782,5.2,181.55,181.47,9.26995315]
[1730218954091,5.2,181.55,181.5,2.7551]
[1730218954275,7.9545,181.55,181.47,9.26995315]
[1730218954475,5.2,181.54,181.51,2.7549]
[1730218954885,7.9547,181.54,181.47,9.26995315]
[1730218955189,7.9547,181.54,181.5,2.7551]
[1730218955976,5.2,181.54,181.49,9.26995315]
[1730218956391,5.2,181.54,181.51,9.26995315]
[1730218956581,5.2,181.56,181.51,9.26995315]
[1730218956887,5.2,181.56,181.55,2.7544]
[1730218957889,5.2,181.58,181.54,2.7545]
[1730218958190,5.2,181.58,181.53,9.26995315]
[1730218958691,5.2,181.58,181.57,2.7541]
[1730218960192,5.2,181.58,181.53,9.26995315]
[1730218960992,5.2,181.58,181.56,2.7542]
[1730218963095,5.2,181.58,181.53,9.26995315]
[1730218964087,5.2,181.58,181.56,9.26995315]
[1730218964385,65.12827371,181.66,181.63,2.7531]
[1730218964593,5.2,181.65,181.6,9.26995315]
[1730218964886,2.7533,181.63,181.6,2.7536]
[1730218965087,5.2,181.65,181.58,9.26995315]
[1730218965390,5.2,181.65,181.51,5.9658]
[1730218965588,5.2,181.65,181.53,9.26995315]
[1730218965798,9.26995315,181.64,181.53,9.26995315]
[1730218966692,9.26995315,181.64,181.57,2.754]
[1730218967094,2.7538,181.6,181.53,9.26995315]
[1730218967296,5.2,181.59,181.53,9.26995315]
[1730218967693,5.2,181.59,181.56,2.7542]
[1730218967988,5.2,181.59,181.53,9.26995315]
[1730218968190,5.2,181.59,181.58,2.754]
[1730218968989,5.2,181.59,181.51,2.0933]
[1730218969189,5.2,181.59,181.53,2.7547]
[1730218969393,5.2,181.59,181.51,10.59745315]
[1730218969394,2.7543,181.57,181.51,10.59745315]
[1730218969989,2.7542,181.57,181.51,10.59745315]
[1730218970184,5.2,181.59,181.51,10.59745315]
[1730218970384,5.2,181.59,181.51,9.26995315]
[1730218970896,5.2,181.59,181.53,2.7547]
[1730218971286,14.46995315,181.59,181.53,2.7547]
[1730218971492,5.2,181.59,181.51,9.26995315]
[1730218971698,5.2,181.59,181.46,1.2069]
[1730218971699,5.2,181.6,181.55,9.26995315]
[1730218971898,1.3028,181.63,181.57,9.26995315]
[1730218972091,1.3028,181.63,181.59,2.7537]
[1730218972293,5.2,181.64,181.57,9.26995315]
[1730218973302,5.2,181.64,181.51,0.7665]
[1730218973493,5.2,181.64,181.57,9.26995315]
[1730218975094,5.2,181.64,181.62,2.7533]
[1730218975295,5.2,181.64,181.57,9.26995315]
[1730218975498,5.2,181.64,181.6,9.26995315]
[1730218975894,2.7527,181.67,181.6,9.26995315]
[1730218976198,7.9529,181.66,181.58,1.2626]
[1730218976496,7.98905103,181.66,181.57,9.26995315]
[1730218976892,7.98905103,181.66,181.6,2.7536]
[1730218977091,2.78905103,181.66,181.6,9.26995315]
[1730218977291,2.78905103,181.66,181.52,1.2626]
[1730218977292,2.752,181.72,181.67,2.7525]
[1730218977497,60.7424,181.75,181.65,9.26995315]
[1730218977894,2.7519,181.72,181.67,2.7525]
[1730218978090,14.46995315,181.74,181.62,9.26995315]
[1730218978403,2.7521,181.71,181.66,2.7526]
[1730218978697,14.46995315,181.74,181.62,9.26995315]
[1730218979084,2.7517,181.73,181.68,2.7524]
[1730218979694,14.46995315,181.74,181.68,2.7524]
[1730218979894,2.7519,181.72,181.68,2.7524]
[1730218980406,14.46995315,181.74,181.68,2.7524]
[1730218980595,2.7517,181.73,181.68,2.7524]
[1730218981000,5.2,181.74,181.65,9.26995315]
[1730218981292,7.9516,181.74,181.7,2.7521]
[1730218981497,5.2,181.74,181.65,9.26995315]
[1730218981899,2.752,181.71,181.65,9.26995315]
[1730218982397,2.7517,181.73,181.69,2.7523]
[1730218982889,2.7519,181.72,181.68,2.7523]
[1730218983096,5.2,181.74,181.65,9.26995315]
[1730218983389,62.30916967,181.85,181.67,9.26995315]
[1730218983595,9.26995315,181.74,181.61,1.3242]
[1730218983794,5.2,181.73,181.64,9.26995315]
[1730218983994,5.2,181.73,181.71,2.7519]
[1730218984393,9.26995315,181.79,181.67,9.26995315]
[1730218984596,2.7513,181.76,181.72,2.7518]
[1730218984901,2.7513,181.76,181.69,9.26995315]
[1730218985290,5.2,181.78,181.69,9.26995315]
[1730218985495,2.7511,181.77,181.69,9.26995315]
[1730218985896,2.7511,181.77,181.73,2.7516]
[1730218987000,5.2,181.78,181.69,9.26995315]
[1730218987001,2.7514,181.76,181.69,9.26995315]
[1730218988394,2.7514,181.76,181.72,2.7518]
[1730218988998,5.2,181.75,181.73,2.7517]
[1730218989199,5.2,181.75,181.72,9.26995315]
[1730218989797,5.2,181.75,181.73,2.7515]
[1730218990303,5.2,181.75,181.72,9.26995315]
[1730218990496,7.89451974,181.75,181.69,9.26995315]
[1730218990996,7.89451974,181.75,181.73,2.7517]
[1730218991198,5.2,181.75,181.73,2.7517]
[1730218991406,2.5092,181.83,181.72,9.26995315]
[1730218991603,5.2,181.8,181.73,2.7516]
[1730218991804,5.2,181.8,181.72,9.26995315]
[1730218992203,5.2,181.8,181.76,2.7512]
[1730218992406,5.2,181.8,181.72,9.26995315]
[1730218992600,2.7509,181.79,181.72,9.26995315]
[1730218992796,5.2,181.8,181.72,9.26995315]
[1730218993202,2.7511,181.78,181.72,9.26995315]
[1730218993505,2.7511,181.78,181.73,2.7516]
[1730218993900,5.2,181.8,181.72,9.26995315]
[1730218994101,5.2,181.8,181.74,2.7515]
[1730218994102,2.7508,181.79,181.74,2.7515]
[1730218994602,2.7515,181.75,181.7,12.02205315]
[1730218994805,8.01510445,181.75,181.7,9.26995315]
[1730218995001,5.2,181.75,181.7,9.26995315]
[1730218995407,5.2,181.75,181.73,2.7516]
[1730218995608,7.9330523,181.75,181.73,2.7516]
[1730218996701,5.2,181.75,181.73,2.7516]
[1730218997703,5.2,181.75,181.74,2.7515]
[1730218999398,5.2,181.75,181.73,2.7516]
[1730218999603,5.2,181.75,181.7,9.26995315]
[1730219001001,7.94764484,181.75,181.71,2.752]
[1730219001200,10.69904484,181.75,181.71,2.752]
[1730219001506,7.94764484,181.75,181.72,2.7518]
[1730219001695,5.2,181.75,181.7,9.26995315]
[1730219002601,2.5092,181.83,181.7,9.26995315]
[1730219002800,2.5092,181.83,181.72,9.26995315]
[1730219002801,5.2,181.82,181.72,9.26995315]
[1730219003305,9.26995315,181.81,181.7,9.26995315]
[1730219004101,9.26995315,181.81,181.63,5.2]
[1730219004102,9.26995315,181.79,181.68,9.26995315]
[1730219004411,2.7512,181.77,181.72,2.7517]
[1730219004611,5.2,181.76,181.72,2.7517]
[1730219004807,2.8224256,181.75,181.68,9.26995315]
[1730219005006,5.5739256,181.75,181.71,2.7519]
[1730219005309,5.2,181.76,181.68,9.26995315]
[1730219006005,2.7513,181.76,181.68,9.26995315]
[1730219006213,5.2,181.75,181.61,1.3242]
[1730219006401,11.88420528,181.75,181.71,2.752]
[1730219006603,11.88420528,181.75,181.67,9.26995315]
[1730219006800,9.13270528,181.75,181.61,1.3242]
[1730219007004,5.2,181.75,181.69,9.26995315]
[1730219007520,5.2,181.75,181.71,9.26995315]
[1730219007914,2.7508,181.8,181.74,2.7515]
[1730219008209,5.2,181.77,181.71,9.26995315]
[1730219008608,5.2,181.77,181.63,10.7063]
[1730219008805,5.2,181.77,181.71,9.26995315]
[1730219009507,2.7513,181.76,181.71,9.26995315]
[1730219009711,2.7513,181.76,181.69,9.26995315]
[1730219010314,2.7513,181.76,181.73,2.7517]
[1730219011008,7.9511,181.77,181.73,2.7516]
[1730219011209,5.2,181.77,181.69,9.26995315]
[1730219011408,2.7516,181.74,181.69,9.26995315]
[1730219011709,5.2,181.77,181.72,2.7518]
[1730219012309,2.7513,181.76,181.69,9.26995315]
[1730219012711,5.2,181.77,181.69,9.26995315]
[1730219012909,7.9511,181.77,181.73,2.7516]
[1730219013411,7.9511,181.77,181.69,9.26995315]
[1730219013412,7.61328154,181.81,181.76,9.26995315]
[1730219013630,2.80916967,181.85,181.69,9.26995315]
[1730219013631,2.80916967,181.85,181.79,9.26995315]
[1730219013923,2.75,181.85,181.76,12.02115315]
[1730219014127,1.2284,181.87,181.7,3.2362]
[1730219014128,4.00801853,181.87,181.7,3.2362]
[1730219014311,4.00801853,181.87,181.75,9.26995315]
[1730219014507,1.3052,181.86,181.77,9.26995315]
[1730219015218,5.18,181.85,181.77,9.26995315]
[1730219015916,5.18,181.85,181.79,9.26995315]
[1730219016712,2.7502,181.83,181.79,9.26995315]
[1730219018210,5.18,181.85,181.76,12.02105315]
[1730219018211,2.7504,181.82,181.76,12.02105315]
[1730219018524,5.18,181.85,181.76,9.26995315]
[1730219018817,2.7502,181.84,181.78,2.7508]
[1730219019807,2.7502,181.84,181.76,9.26995315]
[1730219020119,2.7502,181.84,181.79,2.7508]
[1730219020315,2.7504,181.82,181.76,9.26995315]
[1730219020722,5.18,181.85,181.78,2.7508]
[1730219020919,2.7502,181.83,181.76,9.26995315]
[1730219022316,2.7502,181.83,181.79,2.7508]
[1730219022526,14.44995315,181.85,181.74,9.26995315]
[1730219022721,9.26995315,181.83,181.75,2.7513]
[1730219022928,1.237,181.82,181.75,2.7513]
[1730219023627,2.7507,181.8,181.75,2.7513]
[1730219023921,6.4482,181.79,181.72,9.26995315]
[1730219024512,6.4482,181.79,181.74,2.7515]
[1730219024820,9.199,181.79,181.72,9.26995315]
[1730219025918,9.199,181.79,181.75,2.7513]
[1730219026523,6.4482,181.79,181.76,2.7511]
[1730219026922,6.4482,181.79,181.72,9.26995315]
[1730219027518,6.4482,181.79,181.78,2.7509]
[1730219027915,6.4482,181.79,181.7,9.26995315]
[1730219028922,6.4482,181.79,181.77,2.751]
[1730219029432,6.4482,181.79,181.7,9.26995315]
[1730219030131,2.751,181.78,181.75,2.7514]
[1730219030524,10.55675315,181.78,181.68,9.26995315]
[1730219030832,2.7511,181.77,181.74,2.7515]
[1730219031124,2.71430542,181.76,181.74,2.7515]
[1730219031328,10.55675315,181.78,181.68,9.26995315]
[1730219031829,10.55675315,181.78,181.64,1.215]
[1730219031830,9.26995315,181.76,181.65,9.26995315]
[1730219032031,9.26995315,181.76,181.7,2.752]
[1730219032032,2.7517,181.73,181.7,2.752]
[1730219032236,5.18,181.72,181.7,2.752]
[1730219032526,5.18,181.72,181.65,9.26995315]
[1730219033216,5.18,181.72,181.7,2.752]
[1730219034123,7.9319,181.72,181.67,2.7526]
[1730219034329,7.9319,181.72,181.63,10.56035315]
[1730219034527,5.18,181.72,181.63,10.56035315]
[1730219034731,5.18,181.72,181.63,9.26995315]
[1730219035127,5.18,181.72,181.61,9.26995315]
[1730219035128,1.2716,181.71,181.61,9.26995315]
[1730219035838,2.69448293,181.76,181.67,9.26995315]
[1730219036129,5.18,181.75,181.65,9.26995315]
[1730219036332,9.26995315,181.73,181.62,9.26995315]
[1730219036528,9.26995315,181.71,181.62,9.26995315]
[1730219036733,6.4711,181.7,181.6,9.26995315]
[1730219037028,6.4711,181.7,181.66,2.7526]
[1730219037432,11.7399,181.7,181.66,2.7526]
[1730219039235,11.7399,181.7,181.67,2.7526]
[1730219039532,2.7525,181.68,181.6,9.26995315]
[1730219039738,8.9876,181.7,181.65,2.7528]
[1730219040131,2.7524,181.69,181.65,2.7528]
[1730219040540,8.9876,181.7,181.65,2.7528]
[1730219040732,8.9876,181.7,181.6,9.26995315]
[1730219040931,8.9876,181.7,181.63,9.26995315]
[1730219041138,6.4711,181.7,181.63,9.26995315]
[1730219041332,1.2911,181.7,181.68,2.7523]
[1730219041535,5.26,181.69,181.68,2.7523]
[1730219041743,2.5455,181.75,181.65,9.26995315]
[1730219041938,5.26,181.74,181.65,9.26995315]
[1730219042238,3.8155,181.75,181.6,9.26995315]
[1730219042239,1.27,181.75,181.67,9.26995315]
[1730219042444,5.26,181.74,181.73,2.7517]
[1730219042643,5.26,181.77,181.74,9.26995315]
[1730219043030,5.26,181.77,181.76,2.7511]
[1730219043933,2.5788,181.82,181.76,2.7511]
[1730219043934,5.26,181.8,181.76,9.26995315]
[1730219044742,5.26,181.8,181.79,2.7508]
[1730219045946,5.26,181.8,181.68,0.7666]
[1730219046132,5.26,181.8,181.7,9.26995315]
[1730219046328,14.52995315,181.8,181.7,9.26995315]
[1730219046541,2.7509,181.79,181.7,9.26995315]
[1730219046840,14.52995315,181.8,181.7,9.26995315]
[1730219047036,9.26995315,181.77,181.67,9.26995315]
[1730219047645,2.5309,181.79,181.73,9.26995315]
[1730219047945,1.3074,181.79,181.73,9.26995315]
[1730219048240,1.3074,181.79,181.75,2.7513]
[1730219049144,5.26,181.8,181.78,2.7508]
[1730219049646,5.26,181.8,181.73,9.26995315]
[1730219050145,5.26,181.8,181.75,2.7514]
[1730219050342,11.86415315,181.85,181.75,9.26995315]
[1730219050643,8.0102,181.84,181.79,2.7508]
[1730219050842,5.26,181.84,181.77,9.26995315]
[1730219051546,2.7503,181.83,181.79,2.7506]
[1730219052147,5.26,181.84,181.8,2.7505]
[1730219052541,5.26,181.84,181.77,9.26995315]
[1730219053135,5.26,181.84,181.74,9.26995315]
[1730219053344,9.26995315,181.83,181.72,9.26995315]
[1730219053549,2.751,181.78,181.73,2.7517]
[1730219053844,5.26,181.77,181.69,9.26995315]
[1730219054050,2.7514,181.76,181.72,2.7518]
[1730219054242,5.26,181.77,181.69,9.26995315]
[1730219055244,2.7517,181.73,181.67,9.26995315]
[1730219055448,9.26995315,181.76,181.67,9.26995315]
[1730219055747,9.26995315,181.76,181.67,2.7525]
[1730219055943,9.26995315,181.74,181.65,9.26995315]
[1730219056145,9.26995315,181.74,181.63,9.26995315]
[1730219056352,11.67263019,181.77,181.6,9.26995315]
[1730219056353,9.26995315,181.71,181.6,9.26995315]
[1730219056545,5.26,181.7,181.6,9.26995315]
[1730219056954,5.26,181.7,181.62,9.26995315]
[1730219057248,2.7523,181.69,181.65,9.26995315]
[1730219057836,5.26,181.7,181.65,9.26995315]
[1730219058950,5.26,181.7,181.66,2.7527]
[1730219059257,5.26,181.7,181.65,9.26995315]
[1730219059646,5.26,181.7,181.66,2.7527]